fUSD/lending_fUSD_20240502
["ID","MTS","AMOUNT","RATE_DAILY","PERIOD"]
[325302754,1714686665386,-2651.42,0.00030684,2]
[325302755,1714686665396,-500.0,0.00030684,2]
[325302756,1714686665406,-500.0,0.00030684,2]
[325302757,1714686665415,-500.0,0.00030684,2]
[325302758,1714686665425,-1141.57,0.00030684,2]
[325302759,1714686665434,-915.13,0.00030684,2]
[325302760,1714686665444,-500.0,0.00030684,2]
[325302761,1714686665454,-1708.98,0.00030684,2]
[325302762,1714686665465,-500.0,0.00030684,2]
[325302763,1714686665474,-768.81,0.00030684,2]
[325302764,1714686665484,-574.88,0.00030684,2]
[325302765,1714686665494,-500.0,0.00030684,2]
[325302766,1714686665504,-1450.02,0.00030684,2]
[325302767,1714686665516,-500.0,0.00030684,2]
[325302768,1714686665526,-500.0,0.00030684,2]
[325302769,1714686665535,-2149.48,0.00030684,2]
[325302770,1714686665545,-625.82,0.00030684,2]
[325302771,1714686665554,-1377.62,0.00030684,2]
[325302772,1714686665564,-808.92,0.00030684,2]
[325302773,1714686665574,-800.27,0.00030684,2]
[325302774,1714686665584,-1189.64,0.00030684,2]
[325302775,1714686665594,-2032.19,0.00030684,2]
[325302776,1714686665603,-1162.28,0.00030684,2]
[325302777,1714686665612,-500.0,0.00030684,2]
[325302778,1714686665622,-900.6,0.00030684,2]
[325302779,1714686665632,-947.18,0.00030684,2]
[325302780,1714686665641,-869.74,0.00030684,2]
[325302781,1714686665650,-500.0,0.00030684,2]
[325302782,1714686665660,-814.78,0.00030684,2]
[325302783,1714686665670,-500.0,0.00030684,2]
[325302784,1714686665680,-687.46,0.00030684,2]
[325302785,1714686665689,-2264.77,0.00030684,2]
[325302786,1714686665698,-500.0,0.00030684,2]
[325302787,1714686665708,-1199.66,0.00030684,2]
[325302788,1714686665717,-1330.34,0.00030684,2]
[325302789,1714686665726,-669.49,0.00030684,2]
[325302790,1714686665736,-1543.7,0.00030684,2]
[325302791,1714686665746,-1058.86,0.00030684,2]
[325302792,1714686665756,-602.7,0.00030684,2]
[325302793,1714686665767,-1217.79,0.00030684,2]
[325302794,1714686665778,-500.0,0.00030684,2]
[325302795,1714686665787,-1365.42,0.00030684,2]
[325302796,1714686665800,-2315.09,0.00030684,2]
[325302797,1714686665811,-500.0,0.00030684,2]
[325302798,1714686665820,-500.0,0.00030684,2]
[325302799,1714686665829,-500.0,0.00030684,2]
[325302800,1714686665839,-155.72525913,0.00030684,2]
[325302801,1714686665848,-789.24,0.00030684,2]
[325302802,1714686665857,-1237.54,0.00030684,2]
[325302803,1714686665867,-500.0,0.00030684,2]
[325302804,1714686665876,-1341.99,0.00030684,2]
[325302805,1714686665886,-1077.83,0.00030684,2]
[325302806,1714686665895,-1079.08,0.00030684,2]
[325302807,1714686665904,-500.0,0.00030684,2]
[325302808,1714686665915,-500.0,0.00030684,2]
[325302809,1714686665925,-539.77,0.00030684,2]
[325302810,1714686665934,-1453.69,0.00030684,2]
[325302811,1714686665944,-500.0,0.00030684,2]
[325302812,1714686665953,-500.0,0.00030684,2]
[325302813,1714686665963,-500.0,0.00030684,2]
[325302814,1714686665972,-1558.22,0.00030684,2]
[325302815,1714686665981,-1080.4,0.00030684,2]
[325302816,1714686665990,-500.0,0.00030684,2]
[325302817,1714686666000,-500.0,0.00030684,2]
[325302818,1714686666011,-500.0,0.00030684,2]
[325302819,1714686666020,-500.0,0.00030684,2]
[325302820,1714686666029,-500.0,0.00030684,2]
[325302821,1714686666039,-992.99,0.00030684,2]
[325302822,1714686666048,-500.0,0.00030684,2]
[325302823,1714686666058,-500.0,0.00030684,2]
[325302824,1714686666068,-500.0,0.00030684,2]
[325302825,1714686666078,-1851.96,0.00030684,2]
[325302826,1714686666087,-500.0,0.00030684,2]
[325302827,1714686666096,-500.0,0.00030684,2]
[325302828,1714686666106,-864.81,0.00030684,2]
[325302829,1714686666115,-500.0,0.00030684,2]
[325302830,1714686666125,-1006.44,0.00030684,2]
[325302831,1714686666134,-500.0,0.00030684,2]
[325302832,1714686666143,-500.0,0.00030684,2]
[325302833,1714686666152,-1062.68,0.00030684,2]
[325302834,1714686666162,-657.12,0.00030684,2]
[325302835,1714686666171,-781.89,0.00030684,2]
[325302836,1714686666181,-1374.32,0.00030684,2]
[325302837,1714686666190,-1135.77,0.00030684,2]
[325302838,1714686666200,-744.61,0.00030684,2]
[325302839,1714686666209,-933.59,0.00030684,2]
[325302840,1714686666218,-896.08,0.00030684,2]
[325302841,1714686666227,-2273.23,0.00030684,2]
[325302842,1714686666237,-559.35,0.00030684,2]
[325302843,1714686666246,-2267.57,0.00030684,2]
[325302844,1714686666256,-1070.0,0.00030684,2]
[325302845,1714686666268,-500.0,0.00030684,2]
[325302846,1714686666277,-859.36,0.00030684,2]
[325302847,1714686666287,-500.0,0.00030684,2]
[325302848,1714686666296,-647.12,0.00030684,2]
[325302849,1714686666305,-500.0,0.00030684,2]
[325302850,1714686666315,-862.54,0.00030684,2]
[325302851,1714686666324,-810.54,0.00030684,2]
[325302852,1714686666333,-1136.95,0.00030684,2]
[325302853,1714686666342,-2039.77,0.00030684,2]
[325302854,1714686666352,-500.0,0.00030684,2]
[325302855,1714686666362,-500.0,0.00030684,2]
[325302856,1714686666371,-500.0,0.00030684,2]
[325302857,1714686666381,-500.0,0.00030684,2]
[325302858,1714686666390,-500.0,0.00030684,2]
[325302859,1714686666400,-1286.93,0.00030684,2]
[325302860,1714686666409,-857.57,0.00030684,2]
[325302861,1714686666419,-500.0,0.00030684,2]
[325302862,1714686666428,-565.96,0.00030684,2]
[325302863,1714686666438,-1203.69,0.00030684,2]
[325302864,1714686666447,-612.04,0.00030684,2]
[325302865,1714686666457,-500.0,0.00030684,2]
[325302866,1714686666467,-1636.54,0.00030684,2]
[325302867,1714686666477,-1084.39,0.00030684,2]
[325302868,1714686666488,-1293.33,0.00030684,2]
[325302869,1714686666498,-978.77,0.00030684,2]
[325302870,1714686666511,-719.47,0.00030684,2]
[325302871,1714686666520,-996.06,0.00030684,2]
[325302872,1714686666529,-807.45,0.00030684,2]
[325302873,1714686666538,-500.0,0.00030684,2]
[325302874,1714686666547,-1052.5,0.00030684,2]
[325302875,1714686666557,-1167.84,0.00030684,2]
[325302876,1714686666567,-678.17,0.00030684,2]
[325302877,1714686666578,-370.86192175,0.00030684,2]
[325302878,1714686666589,-500.0,0.00030684,2]
[325302879,1714686666599,-500.0,0.00030684,2]
[325302880,1714686666609,-716.58,0.00030684,2]
[325302881,1714686666620,-1707.55,0.00030684,2]
[325302882,1714686666630,-827.94,0.00030684,2]
[325302883,1714686666641,-1060.89,0.00030684,2]
[325302884,1714686666652,-1070.32,0.00030684,2]
[325302885,1714686666662,-2324.94,0.00030684,2]
[325302886,1714686666673,-500.0,0.00030684,2]
[325302887,1714686666683,-1370.43,0.00030684,2]
[325302888,1714686666694,-1062.63,0.00030684,2]
[325302889,1714686666705,-613.91,0.00030684,2]
[325302890,1714686666716,-500.0,0.00030684,2]
[325302891,1714686666726,-1609.03,0.00030684,2]
[325302892,1714686666738,-1035.399801,0.00030684,7]
[325302893,1714686666749,-3067.2,0.00030684,2]
[325302894,1714686666761,-500.0,0.00030684,2]
[325302895,1714686666773,-941.35,0.00030684,2]
[325302896,1714686666790,-1369.72,0.00030684,2]
[325302897,1714686666801,-500.0,0.00030684,2]
[325302898,1714686666811,-500.0,0.00030684,2]
[325302899,1714686666825,-500.0,0.00030684,2]
[325302900,1714686666836,-2549.22,0.00030684,2]
[325302901,1714686666851,-1035.399801,0.00030684,7]
[325302902,1714686666864,-1593.06,0.00030684,2]
[325302903,1714686666890,-500.0,0.00030684,2]
[325302904,1714686666936,-151.0,0.00030684,7]
[325302905,1714686666949,-500.0,0.00030684,2]
[325302906,1714686666960,-151.0,0.00030684,7]
[325302907,1714686666970,-1276.59,0.00030684,2]
[325302908,1714686666993,-672.98,0.00030684,2]
[325302909,1714686667003,-575.89,0.00030684,2]
[325302910,1714686667026,-169.910347,0.00030684,7]
[325302911,1714686667036,-151.0,0.00030684,7]
[325302912,1714686667046,-500.0,0.00030684,2]
[325302913,1714686667063,-169.910347,0.00030684,7]
[325302914,1714686667074,-532.54,0.00030684,2]
[325302915,1714686667084,-1415.22,0.00030684,2]
[325302916,1714686667107,-151.0,0.00030684,7]
[325302917,1714686667125,-544.16,0.00030684,2]
[325302918,1714686667135,-3028.77,0.00030684,2]
[325302919,1714686667148,-500.0,0.00030684,2]
[325302920,1714686667159,-523.28,0.00030684,2]
[325302921,1714686667172,-500.0,0.00030684,2]
[325302922,1714686667182,-500.0,0.00030684,2]
[325302923,1714686667196,-578.3,0.00030684,2]
[325302924,1714686667207,-151.0,0.00030684,7]
[325302925,1714686667221,-515.53,0.00030684,2]
[325302926,1714686667232,-500.0,0.00030684,2]
[325302927,1714686667242,-950.5,0.00030684,2]
[325302928,1714686667252,-500.0,0.00030684,2]
[325302929,1714686667277,-500.0,0.00030684,2]
[325302930,1714686667290,-1075.44,0.00030684,2]
[325302931,1714686667304,-500.0,0.00030684,2]
[325302932,1714686667315,-533.2,0.00030684,2]
[325302933,1714686667326,-542.01,0.00030684,2]
[325302934,1714686667350,-770.69,0.00030684,2]
[325302935,1714686667367,-500.0,0.00030684,2]
[325302936,1714686667382,-743.56,0.00030684,2]
[325302937,1714686667397,-947.85,0.00030684,2]
[325302938,1714686667407,-500.0,0.00030684,2]
[325302939,1714686667422,-1179.98,0.00030684,2]
[325302940,1714686667433,-676.03,0.00030684,2]
[325302941,1714686667445,-500.0,0.00030684,2]
[325302942,1714686667455,-653.28,0.00030684,2]
[325302943,1714686667465,-500.0,0.00030684,2]
[325302944,1714686667475,-500.0,0.00030684,2]
[325302945,1714686667484,-500.0,0.00030684,2]
[325302946,1714686667494,-1221.83,0.00030684,2]
[325302947,1714686667504,-151.0,0.00030684,7]
[325302948,1714686667515,-663.28,0.00030684,2]
[325302949,1714686667524,-500.0,0.00030684,2]
[325302950,1714686667534,-641.12,0.00030684,2]
[325302951,1714686667544,-500.0,0.00030684,2]
[325302952,1714686667553,-500.0,0.00030684,2]
[325302953,1714686667564,-745.75,0.00030684,2]
[325302954,1714686667574,-980.77,0.00030684,2]
[325302955,1714686667584,-151.0,0.00030684,7]
[325302956,1714686667594,-500.0,0.00030684,2]
[325302957,1714686667603,-1924.82616,0.00030684,2]
[325302958,1714686667613,-500.0,0.00030684,2]
[325302959,1714686667623,-755.36,0.00030684,2]
[325302960,1714686667633,-1941.43,0.00030684,2]
[325302961,1714686667642,-151.0,0.00030684,7]
[325302962,1714686667652,-907.92,0.00030684,2]
[325302963,1714686667662,-500.0,0.00030684,2]
[325302964,1714686667672,-500.0,0.00030684,2]
[325302965,1714686667681,-500.0,0.00030684,2]
[325302966,1714686667691,-822.44,0.00030684,2]
[325302967,1714686667700,-500.0,0.00030684,2]
[325302968,1714686667710,-207.103829,0.00030684,7]
[325302969,1714686667719,-500.0,0.00030684,2]
[325302970,1714686667729,-623.06,0.00030684,2]
[325302971,1714686667738,-500.0,0.00030684,2]
[325302972,1714686667748,-1230.66,0.00030684,2]
[325302973,1714686667758,-500.0,0.00030684,2]
[325302974,1714686667770,-500.0,0.00030684,2]
[325302975,1714686667783,-520.02,0.00030684,2]
[325302976,1714686667793,-151.0,0.00030684,7]
[325302977,1714686667803,-1115.54,0.00030684,2]
[325302978,1714686667816,-500.0,0.00030684,2]
[325302979,1714686667828,-500.0,0.00030684,2]
[325302980,1714686667839,-500.0,0.00030684,2]
[325302981,1714686667850,-151.0,0.00030684,7]
[325302982,1714686667860,-868.71,0.00030684,2]
[325302983,1714686667872,-633.85,0.00030684,2]
[325302984,1714686667882,-500.0,0.00030684,2]
[325302985,1714686667893,-500.0,0.00030684,2]
[325302986,1714686667904,-500.0,0.00030684,2]
[325302987,1714686667914,-1001.32,0.00030684,2]
[325302988,1714686667924,-1367.19,0.00030684,2]
[325302989,1714686667934,-151.0,0.00030684,7]
[325302990,1714686667944,-665.95,0.00030684,2]
[325302991,1714686667955,-500.0,0.00030684,2]
[325302992,1714686667964,-5116.35,0.00030684,2]
[325302993,1714686667973,-500.0,0.00030684,2]
[325302994,1714686667982,-500.0,0.00030684,2]
[325302995,1714686667991,-1539.85,0.00030684,2]
[325302996,1714686668001,-1454.53,0.00030684,2]
[325302997,1714686668010,-969.1,0.00030684,2]
[325302998,1714686668023,-500.0,0.00030684,2]
[325302999,1714686668036,-1106.61,0.00030684,2]
[325303000,1714686668047,-506.26915135,0.00030684,2]
[325303001,1714686668057,-500.0,0.00030684,2]
[325303002,1714686668067,-500.0,0.00030684,2]
[325303003,1714686668078,-500.0,0.00030684,2]
[325303004,1714686668088,-10444.68,0.00030684,2]
[325303005,1714686668098,-523.43,0.00030684,2]
[325303006,1714686668107,-500.0,0.00030684,2]
[325303007,1714686668116,-1454.59,0.00030684,2]
[325303008,1714686668125,-500.0,0.00030684,2]
[325303009,1714686668135,-500.0,0.00030684,2]
[325303010,1714686668144,-986.4,0.00030684,2]
[325303011,1714686668154,-1116.71,0.00030684,2]
[325303012,1714686668163,-500.0,0.00030684,2]
[325303013,1714686668172,-500.0,0.00030684,2]
[325303014,1714686668182,-500.0,0.00030684,2]
[325303015,1714686668192,-851.27,0.00030684,2]
[325303016,1714686668201,-1973.86,0.00030684,2]
[325303017,1714686668211,-3577.68,0.00030684,2]
[325303018,1714686668220,-500.0,0.00030684,2]
[325303019,1714686668230,-500.0,0.00030684,2]
[325303020,1714686668240,-819.06,0.00030684,2]
[325303021,1714686668249,-500.0,0.00030684,2]
[325303022,1714686668259,-500.0,0.00030684,2]
[325303023,1714686668272,-887.83,0.00030684,2]
[325303024,1714686668281,-500.0,0.00030684,2]
[325303025,1714686668291,-746.33,0.00030684,2]
[325303026,1714686668301,-9615.22,0.00030684,2]
[325303027,1714686668310,-525.6,0.00030684,2]
[325303028,1714686668320,-1076.78,0.00030684,2]
[325303029,1714686668329,-1507.5,0.00030684,2]
[325303030,1714686668339,-1898.55,0.00030684,2]
[325303031,1714686668348,-778.18,0.00030684,2]
[325303032,1714686668358,-1214.77,0.00030684,2]
[325303033,1714686668368,-1869.85,0.00030684,2]
[325303034,1714686668378,-500.0,0.00030684,2]
[325303035,1714686668387,-765.27,0.00030684,2]
[325303036,1714686668397,-1332.63,0.00030684,2]
[325303037,1714686668407,-1494.12,0.00030684,2]
[325303038,1714686668416,-2808.71,0.00030684,2]
[325303039,1714686668426,-848.89,0.00030684,2]
[325303040,1714686668436,-748.84,0.00030684,2]
[325303041,1714686668446,-26442.21,0.00030684,2]
[325303042,1714686668456,-500.0,0.00030684,2]
[325303043,1714686668466,-500.0,0.00030684,2]
[325303044,1714686668476,-7720.07,0.00030684,2]
[325303045,1714686668485,-748.05,0.00030684,2]
[325303046,1714686668494,-500.0,0.00030684,2]
[325303047,1714686668504,-1273.99,0.00030684,2]
[325303048,1714686668516,-862.76,0.00030684,2]
[325303049,1714686668525,-7197.96,0.00030684,2]
[325303050,1714686668534,-500.0,0.00030684,2]
[325303051,1714686668543,-16153.0,0.00030684,2]
[325303052,1714686668553,-847.87,0.00030684,2]
[325303053,1714686668562,-652.7,0.00030684,2]
[325303054,1714686668571,-759.69,0.00030684,2]
[325303055,1714686668581,-37893.06,0.00030684,2]
[325303056,1714686668591,-623.36,0.00030684,2]
[325303057,1714686668600,-500.0,0.00030684,2]
[325303058,1714686668610,-2087.53,0.00030684,2]
[325303059,1714686668619,-2200.02,0.00030684,2]
[325303060,1714686668629,-1420.9,0.00030684,2]
[325303061,1714686668638,-10025.94,0.00030684,2]
[325303062,1714686668648,-936.72,0.00030684,2]
[325303063,1714686668657,-1013.84,0.00030684,2]
[325303064,1714686668667,-899.02,0.00030684,2]
[325303065,1714686668676,-500.0,0.00030684,2]
[325303066,1714686668685,-2390.03,0.00030684,2]
[325303067,1714686668695,-3613.98,0.00030684,2]
[325303068,1714686668704,-2485.7,0.00030684,2]
[325303069,1714686668714,-623.79,0.00030684,2]
[325303070,1714686668724,-2608.35,0.00030684,2]
[325303071,1714686668734,-500.0,0.00030684,2]
[325303072,1714686668744,-661.74,0.00030684,2]
[325303073,1714686668754,-813.27,0.00030684,2]
[325303074,1714686668766,-500.0,0.00030684,2]
[325303075,1714686668777,-1084.38,0.00030684,2]
[325303076,1714686668790,-288.719096,0.00030684,7]
[325303077,1714686668799,-500.0,0.00030684,2]
[325303078,1714686668809,-646.24691553,0.00030684,2]
[325303079,1714686668819,-6799.36,0.00030684,2]
[325303080,1714686668831,-822.14,0.00030684,2]
[325303081,1714686668840,-2813.98,0.00030684,2]
[325303082,1714686668850,-500.0,0.00030684,2]
[325303083,1714686668860,-2091.13,0.00030684,2]
[325303084,1714686668869,-542.92,0.00030684,2]
[325303085,1714686668879,-500.0,0.00030684,2]
[325303086,1714686668888,-708.4,0.00030684,2]
[325303087,1714686668897,-151.0,0.00030684,7]
[325303088,1714686668907,-500.0,0.00030684,2]
[325303089,1714686668917,-500.0,0.00030684,2]
[325303090,1714686668926,-2730.73,0.00030684,2]
[325303091,1714686668936,-500.0,0.00030684,2]
[325303092,1714686668946,-3095.6,0.00030684,2]
[325303093,1714686668955,-2259.43,0.00030684,2]
[325303094,1714686668965,-500.0,0.00030684,2]
[325303095,1714686668975,-521.83,0.00030684,2]
[325303096,1714686668985,-500.0,0.00030684,2]
[325303097,1714686668995,-1132.55,0.00030684,2]
[325303098,1714686669004,-601.93,0.00030684,2]
[325303099,1714686669015,-500.0,0.00030684,2]
[325303100,1714686669025,-9902.82,0.00030684,2]
[325303101,1714686669035,-500.0,0.00030684,2]
[325303102,1714686669045,-758.39,0.00030684,2]
[325303103,1714686669054,-628.77,0.00030684,2]
[325303104,1714686669065,-522.89,0.00030684,2]
[325303105,1714686669075,-6079.29,0.00030684,2]
[325303106,1714686669085,-6844.26,0.00030684,2]
[325303107,1714686669095,-2915.11,0.00030684,2]
[325303108,1714686669104,-581.23,0.00030684,2]
[325303109,1714686669114,-776.84,0.00030684,2]
[325303110,1714686669123,-601.83,0.00030684,2]
[325303111,1714686669133,-1917.49,0.00030684,2]
[325303112,1714686669142,-1118.82,0.00030684,2]
[325303113,1714686669152,-1039.59,0.00030684,2]
[325303114,1714686669163,-935.34,0.00030684,2]
[325303115,1714686669172,-1047.53,0.00030684,2]
[325303116,1714686669183,-500.0,0.00030684,2]
[325303117,1714686669192,-55497.91,0.00030684,2]
[325303118,1714686669202,-233.10063189,0.00030684,2]
[325303119,1714686669211,-500.0,0.00030684,2]
[325303120,1714686669221,-843.816551,0.00030684,7]
[325303121,1714686669230,-725.73,0.00030684,2]
[325303122,1714686669240,-1027.64,0.00030684,2]
[325303123,1714686669250,-24224.22,0.00030684,2]
[325303124,1714686669260,-500.0,0.00030684,2]
[325303125,1714686669270,-1536.48,0.00030684,2]
[325303126,1714686669280,-500.0,0.00030684,2]
[325303127,1714686669289,-500.0,0.00030684,2]
[325303128,1714686669299,-843.816551,0.00030684,7]
[325303129,1714686669308,-1511.37,0.00030684,2]
[325303130,1714686669319,-500.0,0.00030684,2]
[325303131,1714686669329,-500.0,0.00030684,2]
[325303132,1714686669339,-4410.34,0.00030684,2]
[325303133,1714686669349,-2235.86,0.00030684,2]
[325303134,1714686669359,-5069.58,0.00030684,2]
[325303135,1714686669369,-2269.91,0.00030684,2]
[325303136,1714686669378,-500.0,0.00030684,2]
[325303137,1714686669387,-863.34,0.00030684,2]
[325303138,1714686669397,-7334.02,0.00030684,2]
[325303139,1714686669409,-500.0,0.00030684,2]
[325303140,1714686669418,-500.0,0.00030684,2]
[325303141,1714686669430,-2505.7,0.00030684,2]
[325303142,1714686669440,-1722.02,0.00030684,2]
[325303143,1714686669451,-1573.95,0.00030684,2]
[325303144,1714686669466,-753.72,0.00030684,2]
[325303145,1714686669482,-625.47,0.00030684,2]
[325303146,1714686669501,-500.0,0.00030684,2]
[325303147,1714686669529,-2326.88,0.00030684,2]
[325303148,1714686669550,-500.0,0.00030684,2]
[325303149,1714686669568,-500.0,0.00030684,2]
[325303150,1714686669580,-500.0,0.00030684,2]
[325303151,1714686669590,-500.0,0.00030684,2]
[325303152,1714686669620,-1097.91,0.00030684,2]
[325303153,1714686669632,-2271.83,0.00030684,2]
[325303154,1714686669669,-1272.77,0.00030684,2]
[325303155,1714686669688,-3282.13,0.00030684,2]
[325303156,1714686669704,-2327.52,0.00030684,2]
[325303157,1714686669716,-1970.05,0.00030684,2]
[325303158,1714686669727,-14524.03,0.00030684,2]
[325303159,1714686669737,-860.16,0.00030684,2]
[325303160,1714686669747,-500.0,0.00030684,2]
[325303161,1714686669769,-687.581755,0.00030684,7]
[325303162,1714686669781,-500.0,0.00030684,2]
[325303163,1714686669791,-175.704244,0.00030684,7]
[325303164,1714686669801,-1157.93,0.00030684,2]
[325303165,1714686669812,-151.0,0.00030684,7]
[325303166,1714686669826,-1023.64,0.00030684,2]
[325303167,1714686669836,-3744.53,0.00030684,2]
[325303168,1714686669846,-500.0,0.00030684,2]
[325303169,1714686669856,-500.0,0.00030684,2]
[325303170,1714686669866,-687.581755,0.00030684,7]
[325303171,1714686669876,-500.0,0.00030684,2]
[325303172,1714686669885,-230.914342,0.00030684,7]
[325303173,1714686669895,-590.51,0.00030684,2]
[325303174,1714686669904,-175.704244,0.00030684,7]
[325303175,1714686669914,-5851.38,0.00030684,2]
[325303176,1714686669923,-1309.0,0.00030684,2]
[325303177,1714686669933,-1281.56,0.00030684,2]
[325303178,1714686669943,-500.0,0.00030684,2]
[325303179,1714686669953,-3015.36,0.00030684,2]
[325303180,1714686669963,-4998.46,0.00030684,2]
[325303181,1714686669973,-151.0,0.00030684,7]
[325303182,1714686669982,-1468.33,0.00030684,2]
[325303183,1714686669992,-2293.55,0.00030684,2]
[325303184,1714686670002,-992.6,0.00030684,2]
[325303185,1714686670012,-2716.45,0.00030684,2]
[325303186,1714686670022,-611.07,0.00030684,2]
[325303187,1714686670032,-1157.21,0.00030684,2]
[325303188,1714686670042,-500.0,0.00030684,2]
[325303189,1714686670052,-1201.24,0.00030684,2]
[325303190,1714686670076,-532.40194936,0.00030684,2]
[325303191,1714686670100,-1264.32,0.00030684,2]
[325303192,1714686670115,-500.0,0.00030684,2]
[325303193,1714686670125,-2355.26,0.00030684,2]
[325303194,1714686670143,-2303.03,0.00030684,2]
[325303195,1714686670153,-500.0,0.00030684,2]
[325303196,1714686670165,-4486.25,0.00030684,2]
[325303197,1714686670175,-150.0,0.00030684,2]
[325303198,1714686670185,-500.0,0.00030684,2]
[325303199,1714686670194,-14227.8,0.00030684,2]
[325303200,1714686670204,-500.0,0.00030684,2]
[325303201,1714686670214,-500.0,0.00030684,2]
[325303202,1714686670223,-1807.48,0.00030684,2]
[325303203,1714686670233,-680.24,0.00030684,2]
[325303204,1714686670243,-2911.84,0.00030684,2]
[325303205,1714686670252,-697.68,0.00030684,2]
[325303206,1714686670264,-1393.37,0.00030684,2]
[325303207,1714686670274,-5019.25,0.00030684,2]
[325303208,1714686670283,-1228.03,0.00030684,2]
[325303209,1714686670293,-500.0,0.00030684,2]
[325303210,1714686670303,-670.94,0.00030684,2]
[325303211,1714686670313,-4386.58,0.00030684,2]
[325303212,1714686670322,-5601.84,0.00030684,2]
[325303213,1714686670332,-3126.38,0.00030684,2]
[325303214,1714686670342,-1072.19,0.00030684,2]
[325303215,1714686670351,-500.0,0.00030684,2]
[325303216,1714686670360,-4006.64,0.00030684,2]
[325303217,1714686670370,-764.19,0.00030684,2]
[325303218,1714686670378,-500.0,0.00030684,2]
[325303219,1714686670388,-2853.25,0.00030684,2]
[325303220,1714686670397,-2003.34,0.00030684,2]
[325303221,1714686670407,-578.22,0.00030684,2]
[325303222,1714686670416,-151.0,0.00030684,7]
[325303223,1714686670425,-500.0,0.00030684,2]
[325303224,1714686670435,-13559.47,0.00030684,2]
[325303225,1714686670445,-2421.42,0.00030684,2]
[325303226,1714686670475,-3793.93,0.00030684,2]
[325303227,1714686670515,-500.0,0.00030684,2]
[325303228,1714686670547,-3387.88,0.00030684,2]
[325303229,1714686670567,-500.0,0.00030684,2]
[325303230,1714686670584,-500.0,0.00030684,2]
[325303231,1714686670599,-2002.39,0.00030684,2]
[325303232,1714686670612,-4495.12,0.00030684,2]
[325303233,1714686670631,-151.0,0.00030684,7]
[325303234,1714686670994,-500.0,0.00030684,2]
[325303235,1714686671010,-1486.8,0.00030684,2]
[325303236,1714686671020,-820.19,0.00030684,2]
[325303237,1714686671030,-500.0,0.00030684,2]
[325303238,1714686671041,-4884.76,0.00030684,2]
[325303239,1714686671051,-500.0,0.00030684,2]
[325303240,1714686671062,-1429.34,0.00030684,2]
[325303241,1714686671077,-805.21,0.00030684,2]
[325303242,1714686671088,-605.63,0.00030684,2]
[325303243,1714686671099,-6098.53,0.00030684,2]
[325303244,1714686671110,-264.45025649,0.00030684,2]
[325303245,1714686671120,-2542.03,0.00030684,2]
[325303246,1714686671131,-2944.08,0.00030684,2]
[325303247,1714686671142,-658.45,0.00030684,2]
[325303248,1714686671152,-2477.22,0.00030684,2]
[325303249,1714686671162,-1225.56,0.00030684,2]
[325303250,1714686671172,-631.62,0.00030684,2]
[325303251,1714686671182,-684.93,0.00030684,2]
[325303252,1714686671192,-944.59,0.00030684,2]
[325303253,1714686671203,-500.0,0.00030684,2]